[Event "Early-Titled-Tuesday-Blitz-October-10-2023"]
[Site "Chess.com"]
[Date "2023.10.10"]
[Round "6"]
[White "OparinGrigoriy"]
[Black "GMZaven"]
[Result "1-0"]
[WhiteElo "2985"]
[BlackElo "2590"]
[TimeControl "180+1"]
[EndTime "9:04:48 PDT"]
[Termination "OparinGrigoriy won by checkmate"]

1. c4 {[%clk 0:03:00.9]} 1... e5 {[%clk 0:02:58]} 2. Nc3 {[%clk 0:03:00.7]} 2...
Nc6 {[%clk 0:02:58.7]} 3. Nf3 {[%clk 0:03:01.3]} 3... Nf6 {[%clk 0:02:57.7]} 4.
g3 {[%clk 0:03:01.6]} 4... Bb4 {[%clk 0:02:57.1]} 5. Bg2 {[%clk 0:03:01.8]} 5...
O-O {[%clk 0:02:56.9]} 6. Nd5 {[%clk 0:03:02.4]} 6... e4 {[%clk 0:02:55.6]} 7.
Nh4 {[%clk 0:03:00]} 7... Re8 {[%clk 0:02:55.9]} 8. O-O {[%clk 0:02:59.6]} 8...
Bf8 {[%clk 0:02:55.2]} 9. d3 {[%clk 0:02:55.9]} 9... exd3 {[%clk 0:02:54.6]} 10.
Qxd3 {[%clk 0:02:56]} 10... Ne5 {[%clk 0:02:52.7]} 11. Qc2 {[%clk 0:02:54.8]}
11... Nxd5 {[%clk 0:02:52.3]} 12. cxd5 {[%clk 0:02:55.7]} 12... d6 {[%clk
0:02:52.7]} 13. e4 {[%clk 0:02:52.7]} 13... Bg4 {[%clk 0:02:51.2]} 14. h3 {[%clk
0:02:49.5]} 14... Bd7 {[%clk 0:02:50.4]} 15. f4 {[%clk 0:02:49.8]} 15... Ng6
{[%clk 0:02:49.6]} 16. Nxg6 {[%clk 0:02:36.2]} 16... hxg6 {[%clk 0:02:49.3]} 17.
Be3 {[%clk 0:02:36.7]} 17... c6 {[%clk 0:02:49.1]} 18. Rad1 {[%clk 0:02:35.2]}
18... cxd5 {[%clk 0:02:46.3]} 19. Rxd5 {[%clk 0:02:36.1]} 19... Bc6 {[%clk
0:02:46.6]} 20. Rd4 {[%clk 0:02:36.2]} 20... Rc8 {[%clk 0:02:46.2]} 21. Qd2
{[%clk 0:02:34.3]} 21... Qc7 {[%clk 0:02:30.1]} 22. g4 {[%clk 0:02:34.7]} 22...
Bb5 {[%clk 0:02:21.7]} 23. Rd1 {[%clk 0:02:33.1]} 23... Qc2 {[%clk 0:02:21.5]}
24. g5 {[%clk 0:02:31]} 24... Qxd2 {[%clk 0:02:21]} 25. R1xd2 {[%clk 0:02:31.9]}
25... Rc1+ {[%clk 0:02:18.8]} 26. Kf2 {[%clk 0:02:32.2]} 26... Rb1 {[%clk
0:02:16.9]} 27. b3 {[%clk 0:02:31.4]} 27... Rc8 {[%clk 0:02:15.1]} 28. Rd1
{[%clk 0:02:10.3]} 28... Rb2+ {[%clk 0:02:13.9]} 29. R4d2 {[%clk 0:02:10.6]}
29... Rxd2+ {[%clk 0:02:13.9]} 30. Rxd2 {[%clk 0:02:11.5]} 30... a6 {[%clk
0:02:14]} 31. h4 {[%clk 0:02:08.3]} 31... Be7 {[%clk 0:02:13.8]} 32. Bf3 {[%clk
0:02:05.8]} 32... Kf8 {[%clk 0:02:13.2]} 33. f5 {[%clk 0:02:00.5]} 33... Bc6
{[%clk 0:02:12]} 34. Bd4 {[%clk 0:01:57.8]} 34... Re8 {[%clk 0:02:07.6]} 35. Re2
{[%clk 0:01:52.7]} 35... Bd8 {[%clk 0:02:07]} 36. Re3 {[%clk 0:01:34.3]} 36...
Ba5 {[%clk 0:02:05.9]} 37. Kg3 {[%clk 0:01:25.5]} 37... Bc7 {[%clk 0:02:03.9]}
38. Kg4 {[%clk 0:01:22.5]} 38... Bd7 {[%clk 0:02:00.8]} 39. h5 {[%clk
0:01:16.2]} 39... d5 {[%clk 0:01:59.9]} 40. h6 {[%clk 0:01:03.9]} 40... dxe4
{[%clk 0:01:45.1]} 41. h7 {[%clk 0:00:58.3]} 41... gxf5+ {[%clk 0:01:38.3]} 42.
Kh4 {[%clk 0:00:55.4]} 42... Ke7 {[%clk 0:01:36.8]} 43. Bxg7 {[%clk 0:00:56]}
43... Bf4 {[%clk 0:01:17]} 44. Re1 {[%clk 0:00:46.3]} 44... Be6 {[%clk
0:00:42.6]} 45. Rd1 {[%clk 0:00:36.7]} 45... Bd7 {[%clk 0:00:12.3]} 46. Be2
{[%clk 0:00:31.9]} 46... Be3 {[%clk 0:00:08.6]} 47. Bf6+ {[%clk 0:00:31.1]}
47... Ke6 {[%clk 0:00:08.2]} 48. Bc4# {[%clk 0:00:31.8]} 1-0

[Event "Early-Titled-Tuesday-Blitz-October-10-2023"]
[Site "Chess.com"]
[Date "2023.10.10"]
[Round "6"]
[White "kacprekt"]
[Black "ArmanGhevondyanchess"]
[Result "0-1"]
[WhiteElo "2468"]
[BlackElo "2574"]
[TimeControl "180+1"]
[EndTime "9:04:52 PDT"]
[Termination "ArmanGhevondyanchess won by resignation"]

1. e4 {[%clk 0:03:00.9]} 1... e6 {[%clk 0:02:53.5]} 2. Nf3 {[%clk 0:03:00.3]}
2... d5 {[%clk 0:02:52.5]} 3. e5 {[%clk 0:02:55.7]} 3... Bd7 {[%clk 0:02:49.5]}
4. c3 {[%clk 0:02:53.3]} 4... c5 {[%clk 0:02:46.3]} 5. a3 {[%clk 0:02:52.9]}
5... Nc6 {[%clk 0:02:37.8]} 6. d4 {[%clk 0:02:45.4]} 6... c4 {[%clk 0:02:35.9]}
7. Be2 {[%clk 0:02:43.8]} 7... Na5 {[%clk 0:02:34.7]} 8. Nbd2 {[%clk 0:02:39.1]}
8... Ne7 {[%clk 0:02:32.3]} 9. O-O {[%clk 0:02:38.3]} 9... Nc8 {[%clk
0:02:28.8]} 10. Rb1 {[%clk 0:02:25.7]} 10... Nb6 {[%clk 0:02:27]} 11. b4 {[%clk
0:02:25.7]} 11... cxb3 {[%clk 0:02:14.9]} 12. Nxb3 {[%clk 0:02:25]} 12... Ba4
{[%clk 0:02:13.3]} 13. Nfd2 {[%clk 0:02:23.1]} 13... Be7 {[%clk 0:02:01.3]} 14.
Qc2 {[%clk 0:02:19]} 14... O-O {[%clk 0:01:59.4]} 15. Bd3 {[%clk 0:02:08.4]}
15... g6 {[%clk 0:01:51.1]} 16. Qa2 {[%clk 0:02:05.9]} 16... Nac4 {[%clk
0:01:34.7]} 17. Bxc4 {[%clk 0:02:04.2]} 17... dxc4 {[%clk 0:01:29.4]} 18. Na5
{[%clk 0:02:02]} 18... Qd5 {[%clk 0:01:27.6]} 19. Naxc4 {[%clk 0:01:51.2]} 19...
Nxc4 {[%clk 0:01:25.2]} 20. Qxc4 {[%clk 0:01:49.6]} 20... Qd7 {[%clk 0:01:16.5]}
21. Qd3 {[%clk 0:01:37.4]} 21... Rac8 {[%clk 0:01:05.1]} 22. c4 {[%clk
0:01:33.6]} 22... b5 {[%clk 0:00:47.9]} 23. Bb2 {[%clk 0:01:17.4]} 23... bxc4
{[%clk 0:00:45.8]} 24. Nxc4 {[%clk 0:01:16.4]} 24... Bb5 {[%clk 0:00:38.3]} 25.
Rfc1 {[%clk 0:01:16.2]} 25... Qd5 {[%clk 0:00:37.6]} 26. Rc3 {[%clk 0:00:55.4]}
26... Rxc4 {[%clk 0:00:32.7]} 27. Rbc1 {[%clk 0:00:55.8]} 27... Rxd4 {[%clk
0:00:27.8]} 28. Qc2 {[%clk 0:00:55.9]} 28... Rd2 {[%clk 0:00:26.9]} 29. Qb3
{[%clk 0:00:53.8]} 29... Qxb3 {[%clk 0:00:20.5]} 30. Rxb3 {[%clk 0:00:54.6]}
30... Rfd8 {[%clk 0:00:21.1]} 31. h4 {[%clk 0:00:51.5]} 31... Ba4 {[%clk
0:00:18.9]} 32. Rb7 {[%clk 0:00:50.3]} 32... Bxh4 {[%clk 0:00:18.3]} 33. g3
{[%clk 0:00:49.5]} 33... Rd1+ {[%clk 0:00:17.2]} 34. Rxd1 {[%clk 0:00:44.1]}
34... Rxd1+ {[%clk 0:00:18.1]} 35. Kh2 {[%clk 0:00:43.4]} 35... Bg5 {[%clk
0:00:19]} 36. Bc3 {[%clk 0:00:27.3]} 36... Bc6 {[%clk 0:00:18]} 37. Rb8+ {[%clk
0:00:27.2]} 37... Kg7 {[%clk 0:00:18.4]} 38. Kh3 {[%clk 0:00:17.6]} 38... Bf3
{[%clk 0:00:16.7]} 39. g4 {[%clk 0:00:10.2]} 39... Bf4 {[%clk 0:00:17]} 0-1

[Event "Early-Titled-Tuesday-Blitz-October-10-2023"]
[Site "Chess.com"]
[Date "2023.10.10"]
[Round "6"]
[White "HajiyevKanan"]
[Black "krzyzan94"]
[Result "0-1"]
[WhiteElo "2581"]
[BlackElo "2776"]
[TimeControl "180+1"]
[EndTime "9:04:55 PDT"]
[Termination "krzyzan94 won by resignation"]

1. d4 {[%clk 0:02:38.5]} 1... Nf6 {[%clk 0:02:59.5]} 2. Nf3 {[%clk 0:02:39.1]}
2... e6 {[%clk 0:02:58.3]} 3. c4 {[%clk 0:02:39.1]} 3... Bb4+ {[%clk 0:02:51.6]}
4. Bd2 {[%clk 0:02:39.2]} 4... c5 {[%clk 0:02:48.7]} 5. e3 {[%clk 0:02:39.6]}
5... O-O {[%clk 0:02:44]} 6. Bd3 {[%clk 0:02:35.2]} 6... d5 {[%clk 0:02:24.3]}
7. Bxb4 {[%clk 0:02:32.3]} 7... cxb4 {[%clk 0:02:23.6]} 8. O-O {[%clk 0:02:30]}
8... Nc6 {[%clk 0:02:20.9]} 9. Nbd2 {[%clk 0:02:29.3]} 9... a5 {[%clk
0:02:17.7]} 10. a3 {[%clk 0:02:25.4]} 10... Bd7 {[%clk 0:02:12.5]} 11. Qc2
{[%clk 0:02:20.2]} 11... h6 {[%clk 0:02:11.2]} 12. Rfc1 {[%clk 0:02:19]} 12...
Qe7 {[%clk 0:02:08.4]} 13. h3 {[%clk 0:02:05.8]} 13... Rfc8 {[%clk 0:02:04.3]}
14. Qd1 {[%clk 0:02:03.3]} 14... bxa3 {[%clk 0:01:50.6]} 15. bxa3 {[%clk
0:02:01.7]} 15... a4 {[%clk 0:01:38.4]} 16. Rcb1 {[%clk 0:01:50.1]} 16... Rc7
{[%clk 0:01:33.7]} 17. Rb6 {[%clk 0:01:45.2]} 17... dxc4 {[%clk 0:01:06.4]} 18.
Nxc4 {[%clk 0:01:42.8]} 18... Nd5 {[%clk 0:01:06.7]} 19. Rb2 {[%clk 0:01:36.2]}
19... b5 {[%clk 0:01:05]} 20. Nce5 {[%clk 0:01:30]} 20... Nxe5 {[%clk
0:01:03.6]} 21. Nxe5 {[%clk 0:01:30.8]} 21... Be8 {[%clk 0:01:00.6]} 22. Qd2
{[%clk 0:01:20.4]} 22... Rb8 {[%clk 0:00:47.2]} 23. Be4 {[%clk 0:01:06.4]} 23...
Nc3 {[%clk 0:00:43.4]} 24. Bd3 {[%clk 0:01:02.1]} 24... b4 {[%clk 0:00:40.4]}
25. axb4 {[%clk 0:01:02.2]} 25... Rxb4 {[%clk 0:00:41.1]} 26. Rxb4 {[%clk
0:01:02.1]} 26... Qxb4 {[%clk 0:00:42]} 27. Kh2 {[%clk 0:00:51.9]} 27... a3
{[%clk 0:00:40]} 28. Nc4 {[%clk 0:00:44.3]} 28... Rxc4 {[%clk 0:00:16]} 29. Bxc4
{[%clk 0:00:44.5]} 29... Qxc4 {[%clk 0:00:15.3]} 30. Rc1 {[%clk 0:00:44.8]}
30... Qc7+ {[%clk 0:00:14.1]} 31. g3 {[%clk 0:00:45.3]} 31... Ne4 {[%clk
0:00:06.2]} 32. Rxc7 {[%clk 0:00:44.7]} 32... Nxd2 {[%clk 0:00:06.4]} 33. Ra7
{[%clk 0:00:43.1]} 33... Nc4 {[%clk 0:00:06.2]} 34. Rc7 {[%clk 0:00:39.8]} 34...
Bb5 {[%clk 0:00:06]} 35. Rc5 {[%clk 0:00:38.4]} 35... Ba6 {[%clk 0:00:05.7]} 36.
Rc6 {[%clk 0:00:35.6]} 36... Bb5 {[%clk 0:00:05.9]} 37. Rc5 {[%clk 0:00:36.1]}
37... Nd6 {[%clk 0:00:04.5]} 38. Rc3 {[%clk 0:00:27.1]} 38... Nc4 {[%clk
0:00:04.2]} 39. Kg2 {[%clk 0:00:19.6]} 39... a2 {[%clk 0:00:03.7]} 40. Rc1
{[%clk 0:00:19.1]} 40... Nd2 {[%clk 0:00:02.8]} 41. Rc8+ {[%clk 0:00:16]} 41...
Kh7 {[%clk 0:00:03]} 42. Ra8 {[%clk 0:00:16.9]} 42... Bc6+ {[%clk 0:00:02.8]}
43. f3 {[%clk 0:00:15.9]} 43... Bxa8 {[%clk 0:00:03.7]} 44. e4 {[%clk
0:00:16.4]} 44... a1=Q {[%clk 0:00:03.8]} 0-1

[Event "Early-Titled-Tuesday-Blitz-October-10-2023"]
[Site "Chess.com"]
[Date "2023.10.10"]
[Round "6"]
[White "Kirill_Klukin"]
[Black "DeArron_Fox"]
[Result "0-1"]
[WhiteElo "2662"]
[BlackElo "2535"]
[TimeControl "180+1"]
[EndTime "9:04:57 PDT"]
[Termination "DeArron_Fox won by resignation"]

1. d4 {[%clk 0:03:00.9]} 1... d5 {[%clk 0:02:57.1]} 2. c4 {[%clk 0:03:01]} 2...
e6 {[%clk 0:02:57.1]} 3. Nc3 {[%clk 0:03:01.3]} 3... Nf6 {[%clk 0:02:54.9]} 4.
Bg5 {[%clk 0:03:01.2]} 4... Be7 {[%clk 0:02:50.9]} 5. Nf3 {[%clk 0:03:01.3]}
5... O-O {[%clk 0:02:47.4]} 6. e3 {[%clk 0:03:01.4]} 6... h6 {[%clk 0:02:48]} 7.
Bh4 {[%clk 0:03:01.6]} 7... b6 {[%clk 0:02:47.4]} 8. cxd5 {[%clk 0:03:01.7]}
8... Nxd5 {[%clk 0:02:48.3]} 9. Bxe7 {[%clk 0:03:02.1]} 9... Qxe7 {[%clk
0:02:48.5]} 10. Nxd5 {[%clk 0:03:02.4]} 10... exd5 {[%clk 0:02:49.4]} 11. Be2
{[%clk 0:03:02.9]} 11... Be6 {[%clk 0:02:49.6]} 12. O-O {[%clk 0:03:03.3]} 12...
c5 {[%clk 0:02:49.5]} 13. dxc5 {[%clk 0:03:02.8]} 13... bxc5 {[%clk 0:02:48.2]}
14. Rc1 {[%clk 0:03:03.6]} 14... Nd7 {[%clk 0:02:46.2]} 15. Bb5 {[%clk
0:02:57.6]} 15... Nf6 {[%clk 0:02:10.3]} 16. Ne5 {[%clk 0:02:45.7]} 16... Rac8
{[%clk 0:01:54.1]} 17. Qa4 {[%clk 0:02:38.8]} 17... Ne4 {[%clk 0:01:17.4]} 18.
Bd3 {[%clk 0:02:16.8]} 18... Qf6 {[%clk 0:00:44.7]} 19. Nd7 {[%clk 0:01:27.3]}
19... Bxd7 {[%clk 0:00:41]} 20. Qxd7 {[%clk 0:01:28.2]} 20... Rfd8 {[%clk
0:00:33.4]} 21. Qxa7 {[%clk 0:01:09.2]} 21... Qxb2 {[%clk 0:00:33]} 22. Bxe4
{[%clk 0:00:58.3]} 22... dxe4 {[%clk 0:00:33.9]} 23. Qa4 {[%clk 0:00:50.1]}
23... Rd2 {[%clk 0:00:21.4]} 24. Rcd1 {[%clk 0:00:16.8]} 24... Rxd1 {[%clk
0:00:10.1]} 25. Rxd1 {[%clk 0:00:15.9]} 25... c4 {[%clk 0:00:08.5]} 26. Qd7
{[%clk 0:00:16.2]} 26... Qb8 {[%clk 0:00:06.9]} 27. Qd2 {[%clk 0:00:12.9]} 27...
c3 {[%clk 0:00:06.8]} 28. Qc2 {[%clk 0:00:13.7]} 28... Qb2 {[%clk 0:00:04.3]}
29. Rc1 {[%clk 0:00:13.7]} 29... Qa3 {[%clk 0:00:04.8]} 30. h3 {[%clk
0:00:13.8]} 30... Rd8 {[%clk 0:00:03.4]} 31. Kh2 {[%clk 0:00:06.8]} 31... Rd3
{[%clk 0:00:03.4]} 32. Qd1 {[%clk 0:00:04.6]} 32... Rxd1 {[%clk 0:00:03.2]} 33.
Rxd1 {[%clk 0:00:04.8]} 33... c2 {[%clk 0:00:03.9]} 34. Rd8+ {[%clk 0:00:04.8]}
34... Kh7 {[%clk 0:00:03.5]} 35. Ra8 {[%clk 0:00:03]} 35... Qxa8 {[%clk
0:00:02.4]} 36. Kg3 {[%clk 0:00:03.6]} 36... Qb8+ {[%clk 0:00:03.3]} 37. Kg4
{[%clk 0:00:04.5]} 37... c1=Q {[%clk 0:00:03.8]} 38. f4 {[%clk 0:00:05.4]} 38...
Qd1+ {[%clk 0:00:04]} 39. Kh4 {[%clk 0:00:06.3]} 39... g5+ {[%clk 0:00:03.7]}
40. Kg3 {[%clk 0:00:06.4]} 40... gxf4+ {[%clk 0:00:03.3]} 41. exf4 {[%clk
0:00:07.3]} 41... Qd2 {[%clk 0:00:03.9]} 42. Kh2 {[%clk 0:00:07.9]} 42... Qdxf4+
{[%clk 0:00:04]} 0-1

[Event "Early-Titled-Tuesday-Blitz-October-10-2023"]
[Site "Chess.com"]
[Date "2023.10.10"]
[Round "6"]
[White "MITerryble"]
[Black "MagnusCarlsen"]
[Result "0-1"]
[WhiteElo "3018"]
[BlackElo "3285"]
[TimeControl "180+1"]
[EndTime "9:05:00 PDT"]
[Termination "MagnusCarlsen won on time"]

1. d4 {[%clk 0:03:00.9]} 1... f5 {[%clk 0:01:15.8]} 2. Bg5 {[%clk 0:01:15.7]}
2... c6 {[%clk 0:01:14.1]} 3. e3 {[%clk 0:01:15]} 3... Qb6 {[%clk 0:01:13.6]} 4.
Qc1 {[%clk 0:01:12.3]} 4... h6 {[%clk 0:01:13.3]} 5. Bf4 {[%clk 0:01:12.2]} 5...
d6 {[%clk 0:01:12.9]} 6. Nf3 {[%clk 0:01:10.5]} 6... Nf6 {[%clk 0:01:12]} 7.
Nbd2 {[%clk 0:01:08.8]} 7... g5 {[%clk 0:01:11.4]} 8. Bg3 {[%clk 0:01:09.2]}
8... Nh5 {[%clk 0:01:11.2]} 9. Bd3 {[%clk 0:01:06.8]} 9... Bg7 {[%clk
0:01:10.2]} 10. c3 {[%clk 0:01:07]} 10... Qc7 {[%clk 0:01:04.7]} 11. Qc2 {[%clk
0:01:04.7]} 11... e6 {[%clk 0:00:55.9]} 12. e4 {[%clk 0:00:56.5]} 12... f4
{[%clk 0:00:51.6]} 13. e5 {[%clk 0:00:57]} 13... fxg3 {[%clk 0:00:51.4]} 14.
Bg6+ {[%clk 0:00:57.1]} 14... Kd8 {[%clk 0:00:51.2]} 15. Bxh5 {[%clk 0:00:45.2]}
15... gxf2+ {[%clk 0:00:50.6]} 16. Kxf2 {[%clk 0:00:46.1]} 16... dxe5 {[%clk
0:00:47.9]} 17. dxe5 {[%clk 0:00:45.4]} 17... Nd7 {[%clk 0:00:47.8]} 18. Nc4
{[%clk 0:00:40.7]} 18... Nxe5 {[%clk 0:00:45.8]} 19. Rhd1+ {[%clk 0:00:26.9]}
19... Ke7 {[%clk 0:00:45.4]} 20. Ncxe5 {[%clk 0:00:26.1]} 20... Bxe5 {[%clk
0:00:45.2]} 21. Kg1 {[%clk 0:00:26]} 21... Bd7 {[%clk 0:00:43.4]} 22. Qe4 {[%clk
0:00:13]} 22... Bf6 {[%clk 0:00:40.2]} 23. Kh1 {[%clk 0:00:13.2]} 23... Qf4
{[%clk 0:00:33]} 24. Qe2 {[%clk 0:00:11.1]} 24... Rad8 {[%clk 0:00:32]} 25. Re1
{[%clk 0:00:10.2]} 25... g4 {[%clk 0:00:29.7]} 26. Nd2 {[%clk 0:00:05]} 26... g3
{[%clk 0:00:29.5]} 27. Nf3 {[%clk 0:00:03.2]} 27... Bc8 {[%clk 0:00:25.7]} 28.
Rf1 {[%clk 0:00:03.1]} 28... Rd5 {[%clk 0:00:24.3]} 29. Nd4 {[%clk 0:00:01.8]}
29... Qh4 {[%clk 0:00:22.5]} 30. h3 {[%clk 0:00:01.7]} 30... Qxh5 {[%clk
0:00:22.2]} 31. Qe3 {[%clk 0:00:02.2]} 31... Bxd4 {[%clk 0:00:19.7]} 32. cxd4
{[%clk 0:00:03.1]} 32... Rf5 {[%clk 0:00:18.6]} 33. Qxg3 {[%clk 0:00:02.9]}
33... Rhf8 {[%clk 0:00:18]} 34. Rfe1 {[%clk 0:00:01.5]} 34... Bd7 {[%clk
0:00:17.7]} 35. Qa3+ {[%clk 0:00:01.2]} 35... Kf7 {[%clk 0:00:12.1]} 36. Qxa7
{[%clk 0:00:02.1]} 36... Kg7 {[%clk 0:00:12.2]} 37. Qxb7 {[%clk 0:00:02.3]}
37... R8f7 {[%clk 0:00:12.2]} 38. Qc7 {[%clk 0:00:02.4]} 38... Rf2 {[%clk
0:00:11.9]} 39. Qg3+ {[%clk 0:00:02.4]} 39... Qg5 {[%clk 0:00:11.9]} 40. Re3
{[%clk 0:00:02.5]} 40... Rxb2 {[%clk 0:00:10.9]} 0-1

[Event "Early-Titled-Tuesday-Blitz-October-10-2023"]
[Site "Chess.com"]
[Date "2023.10.10"]
[Round "6"]
[White "SanchezKelvin"]
[Black "Itk04"]
[Result "0-1"]
[WhiteElo "2580"]
[BlackElo "2752"]
[TimeControl "180+1"]
[EndTime "9:05:02 PDT"]
[Termination "Itk04 won on time"]

1. d4 {[%clk 0:02:51.3]} 1... Nf6 {[%clk 0:02:29.6]} 2. Nc3 {[%clk 0:02:44.6]}
2... d5 {[%clk 0:02:28.9]} 3. Bf4 {[%clk 0:02:40.6]} 3... g6 {[%clk 0:02:28.5]}
4. e3 {[%clk 0:02:40.7]} 4... Bg7 {[%clk 0:02:28.4]} 5. h3 {[%clk 0:02:36.8]}
5... O-O {[%clk 0:02:28.4]} 6. g4 {[%clk 0:02:36.7]} 6... c5 {[%clk 0:02:21.2]}
7. Nge2 {[%clk 0:02:35.9]} 7... Nc6 {[%clk 0:02:20.4]} 8. Bg2 {[%clk 0:02:31.3]}
8... e6 {[%clk 0:01:38.1]} 9. dxc5 {[%clk 0:02:28.5]} 9... e5 {[%clk 0:01:28.4]}
10. Bg5 {[%clk 0:02:27.7]} 10... d4 {[%clk 0:01:28.6]} 11. Bxf6 {[%clk
0:02:11.3]} 11... Bxf6 {[%clk 0:01:22.7]} 12. Ne4 {[%clk 0:02:10.7]} 12... dxe3
{[%clk 0:01:08]} 13. Qxd8 {[%clk 0:01:35.9]} 13... exf2+ {[%clk 0:01:06.8]} 14.
Kxf2 {[%clk 0:01:35.9]} 14... Bxd8 {[%clk 0:01:06.9]} 15. Rhd1 {[%clk 0:01:22]}
15... f5 {[%clk 0:00:43.5]} 16. gxf5 {[%clk 0:01:21.6]} 16... Bxf5 {[%clk
0:00:44.4]} 17. Kg1 {[%clk 0:01:21]} 17... Bxe4 {[%clk 0:00:31.8]} 18. Bxe4
{[%clk 0:01:20]} 18... Be7 {[%clk 0:00:32.7]} 19. Bd5+ {[%clk 0:01:14.7]} 19...
Kh8 {[%clk 0:00:28]} 20. b4 {[%clk 0:00:51.1]} 20... Nxb4 {[%clk 0:00:28.1]} 21.
Rab1 {[%clk 0:00:51.2]} 21... Bxc5+ {[%clk 0:00:28.1]} 22. Kh1 {[%clk
0:00:51.3]} 22... Nxc2 {[%clk 0:00:13.4]} 23. Bxb7 {[%clk 0:00:47.6]} 23... Rad8
{[%clk 0:00:09.6]} 24. Nc3 {[%clk 0:00:45.1]} 24... Ne3 {[%clk 0:00:05.3]} 25.
Rxd8 {[%clk 0:00:42.1]} 25... Rxd8 {[%clk 0:00:06.2]} 26. Ne4 {[%clk 0:00:42.2]}
26... Bb6 {[%clk 0:00:06.6]} 27. Kh2 {[%clk 0:00:40.6]} 27... Kg7 {[%clk
0:00:05]} 28. a4 {[%clk 0:00:37.9]} 28... Nf5 {[%clk 0:00:04.7]} 29. Kg2 {[%clk
0:00:36.4]} 29... Rd3 {[%clk 0:00:04.6]} 30. Ba6 {[%clk 0:00:33.3]} 30... Nh4+
{[%clk 0:00:04.5]} 31. Kh2 {[%clk 0:00:33.6]} 31... Re3 {[%clk 0:00:04.6]} 32.
Bb7 {[%clk 0:00:32.7]} 32... Nf3+ {[%clk 0:00:02.2]} 33. Kg2 {[%clk 0:00:32.2]}
33... Nh4+ {[%clk 0:00:03]} 34. Kh2 {[%clk 0:00:32.3]} 34... Ra3 {[%clk
0:00:03.3]} 35. Rb4 {[%clk 0:00:31.4]} 35... Bd4 {[%clk 0:00:02.5]} 36. Rc4
{[%clk 0:00:30.7]} 36... Be3 {[%clk 0:00:02.9]} 37. Kh1 {[%clk 0:00:29.5]} 37...
Bf4 {[%clk 0:00:03.1]} 38. Rc7+ {[%clk 0:00:27]} 38... Kh6 {[%clk 0:00:03.7]}
39. Nf6 {[%clk 0:00:24.8]} 39... Ra1+ {[%clk 0:00:03.6]} 0-1

[Event "Early-Titled-Tuesday-Blitz-October-10-2023"]
[Site "Chess.com"]
[Date "2023.10.10"]
[Round "6"]
[White "emeli_chess"]
[Black "mortngabriel"]
[Result "1-0"]
[WhiteElo "2395"]
[BlackElo "2521"]
[TimeControl "180+1"]
[EndTime "9:05:04 PDT"]
[Termination "emeli_chess won on time"]

1. d4 {[%clk 0:03:00.9]} 1... Nf6 {[%clk 0:02:59.2]} 2. c4 {[%clk 0:03:01.1]}
2... e6 {[%clk 0:02:59.6]} 3. Nc3 {[%clk 0:03:01.5]} 3... Bb4 {[%clk 0:03:00.1]}
4. Qc2 {[%clk 0:03:01.9]} 4... O-O {[%clk 0:02:58.2]} 5. e4 {[%clk 0:03:01.7]}
5... d5 {[%clk 0:02:58.5]} 6. e5 {[%clk 0:03:01.9]} 6... Ne4 {[%clk 0:02:59]} 7.
Bd3 {[%clk 0:02:59.9]} 7... c5 {[%clk 0:02:58.4]} 8. Nf3 {[%clk 0:02:59.5]} 8...
cxd4 {[%clk 0:02:58.8]} 9. Nxd4 {[%clk 0:02:59.3]} 9... Nd7 {[%clk 0:02:59]} 10.
Bf4 {[%clk 0:02:59.5]} 10... Qh4 {[%clk 0:02:58.7]} 11. g3 {[%clk 0:02:59.4]}
11... Qh5 {[%clk 0:02:58.4]} 12. O-O {[%clk 0:02:58]} 12... Bxc3 {[%clk
0:02:54.6]} 13. bxc3 {[%clk 0:02:57.4]} 13... g5 {[%clk 0:02:54.9]} 14. cxd5
{[%clk 0:02:52.2]} 14... gxf4 {[%clk 0:02:44.9]} 15. Bxe4 {[%clk 0:02:50.3]}
15... exd5 {[%clk 0:02:36.7]} 16. e6 {[%clk 0:02:34.3]} 16... dxe4 {[%clk
0:01:58.9]} 17. exd7 {[%clk 0:02:33.4]} 17... Bxd7 {[%clk 0:01:57.5]} 18. Qxe4
{[%clk 0:02:32.4]} 18... Bh3 {[%clk 0:01:17.1]} 19. Rfe1 {[%clk 0:02:23]} 19...
fxg3 {[%clk 0:01:12.1]} 20. hxg3 {[%clk 0:02:22.5]} 20... b6 {[%clk 0:00:58]}
21. Qe5 {[%clk 0:02:03.6]} 21... Qxe5 {[%clk 0:00:56.6]} 22. Rxe5 {[%clk
0:02:03.2]} 22... Rfe8 {[%clk 0:00:53]} 23. Rae1 {[%clk 0:01:56]} 23... Rxe5
{[%clk 0:00:48.6]} 24. Rxe5 {[%clk 0:01:56.1]} 24... Rc8 {[%clk 0:00:49]} 25.
Re3 {[%clk 0:01:54.1]} 25... Kf8 {[%clk 0:00:44.3]} 26. f3 {[%clk 0:01:52.9]}
26... Bd7 {[%clk 0:00:43.1]} 27. g4 {[%clk 0:01:51.9]} 27... Rc4 {[%clk
0:00:42.6]} 28. Kf2 {[%clk 0:01:46.6]} 28... Ra4 {[%clk 0:00:35.5]} 29. Re2
{[%clk 0:01:29.2]} 29... Ra3 {[%clk 0:00:34.9]} 30. Rc2 {[%clk 0:01:27.6]} 30...
Ba4 {[%clk 0:00:34.7]} 31. Rb2 {[%clk 0:01:23.5]} 31... Rxc3 {[%clk 0:00:34.3]}
32. Kg3 {[%clk 0:01:20.1]} 32... Bd7 {[%clk 0:00:32.9]} 33. Rd2 {[%clk 0:01:18]}
33... Rc4 {[%clk 0:00:30.5]} 34. Kh4 {[%clk 0:01:10]} 34... Kg7 {[%clk
0:00:27.3]} 35. f4 {[%clk 0:01:06.8]} 35... b5 {[%clk 0:00:25.2]} 36. f5 {[%clk
0:01:04.4]} 36... h6 {[%clk 0:00:21.3]} 37. Kh5 {[%clk 0:00:57.3]} 37... Rc1
{[%clk 0:00:19.8]} 38. Kh4 {[%clk 0:00:55.3]} 38... Rh1+ {[%clk 0:00:18.7]} 39.
Kg3 {[%clk 0:00:55.4]} 39... Rg1+ {[%clk 0:00:19.4]} 40. Kf4 {[%clk 0:00:55.3]}
40... Kf6 {[%clk 0:00:18.6]} 41. Nf3 {[%clk 0:00:54.3]} 41... Ra1 {[%clk
0:00:10]} 42. Rxd7 {[%clk 0:00:53.7]} 42... Rxa2 {[%clk 0:00:10.4]} 43. Rd6+
{[%clk 0:00:52.9]} 43... Kg7 {[%clk 0:00:11.2]} 44. Ne5 {[%clk 0:00:50.8]} 44...
Ra4+ {[%clk 0:00:10.3]} 45. Kf3 {[%clk 0:00:48.6]} 45... Ra3+ {[%clk 0:00:10.7]}
46. Ke4 {[%clk 0:00:48.3]} 46... Ra4+ {[%clk 0:00:11]} 47. Kd5 {[%clk
0:00:48.6]} 47... Ra1 {[%clk 0:00:07.2]} 48. Kc5 {[%clk 0:00:44.5]} 48... Re1
{[%clk 0:00:05.3]} 49. Nd3 {[%clk 0:00:40.7]} 49... Re4 {[%clk 0:00:05.3]} 50.
Rd7 {[%clk 0:00:36.4]} 50... Rxg4 {[%clk 0:00:05.2]} 51. Ne5 {[%clk 0:00:35.5]}
51... Rf4 {[%clk 0:00:02.8]} 52. Rxf7+ {[%clk 0:00:35.1]} 52... Kg8 {[%clk
0:00:03.4]} 53. Kd6 {[%clk 0:00:34.8]} 1-0